Workbook

Sheet Groupes (hidden)
A1: France | B1: Angleterre | C1: Allemagne | D1: Espagne | E1: Belgique | F1: Portugal
A2: Roumanie | B2: Russie | C2: Ukraine | D2: République Tchèque | E2: Italie | F2: Islande
A3: Albanie | B3: Pays de Galles | C3: Pologne | D3: Turquie | E3: Irlande | F3: Autriche
A4: Suisse | B4: Slovaquie | C4: Irlande du Nord | D4: Croatie | E4: Suède | F4: Hongrie

Sheet Groupe A
D1: 1
A2: 2016-06-10 | B2: =INDIRECT(ADDRESS(1,D1,,,"Groupes")) -> France | C2: 3 | E2: =INDIRECT(ADDRESS(1,D1,,,"Groupes")) -> France | F2: =C2+C6+C10 -> 8 | G2: =C3+C7+C11 -> 3 | H2: =Victoire(C2,C3)+Victoire(C6,C7)+Victoire(C10,C11) -> 3 | I2: =NUL(C2,C3)+NUL(C6,C7)+NUL(C10,C11) -> 0 | J2: =Defaite(C2,C3)+Defaite(C6,C7)+Defaite(C10,C11) -> 0 | K2: =H2+I2+J2 -> 3 | L2: =H2*3+I2 -> 9 | M2: =1000000+L2*100000+(F2-G2)*10000+F2*1000+0.4 -> 1958000.4 | N2: =IF(M2=MAX(M:M),1,M2) -> 1 | O2: =IF(N2=MAX(N:N),2,N2) -> 1 | P2: =IF(O2=MAX(O:O),3,O2) -> 1 | Q2: =IF(P2=MAX(P:P),4,P2) -> 1 | S2: Classement
B3: =INDIRECT(ADDRESS(2,D1,,,"Groupes")) -> Roumanie | C3: 1 | E3: =INDIRECT(ADDRESS(2,D1,,,"Groupes")) -> Roumanie | F3: =C3+C8+C12 -> 1 | G3: =C2+C9+C13 -> 6 | H3: =Victoire(C3,C2)+Victoire(C8,C9)+Victoire(C12,C13) -> 0 | I3: =NUL(C3,C2)+NUL(C8,C9)+NUL(C12,C13) -> 0 | J3: =Defaite(C3,C2)+Defaite(C8,C9)+Defaite(C12,C13) -> 3 | K3: =H3+I3+J3 -> 3 | L3: =H3*3+I3 -> 0 | M3: =1000000+L3*100000+(F3-G3)*10000+F3*1000+0.3 -> 951000.3 | N3: =IF(M3=MAX(M:M),1,M3) -> 951000.3 | O3: =IF(N3=MAX(N:N),2,N3) -> 951000.3 | P3: =IF(O3=MAX(O:O),3,O3) -> 951000.3 | Q3: =IF(P3=MAX(P:P),4,P3) -> 4
A4: 2016-06-11 | B4: =INDIRECT(ADDRESS(3,D1,,,"Groupes")) -> Albanie | C4: 1 | E4: =INDIRECT(ADDRESS(3,D1,,,"Groupes")) -> Albanie | F4: =C4+C7+C13 -> 3 | G4: =C5+C6+C12 -> 3 | H4: =Victoire(C4,C5)+Victoire(C7,C6)+Victoire(C13,C12) -> 1 | I4: =NUL(C4,C5)+NUL(C7,C6)+NUL(C13,C12) -> 1 | J4: =Defaite(C4,C5)+Defaite(C7,C6)+Defaite(C13,C12) -> 1 | K4: =H4+I4+J4 -> 3 | L4: =H4*3+I4 -> 4 | M4: =1000000+L4*100000+(F4-G4)*10000+F4*1000+0.2 -> 1403000.2 | N4: =IF(M4=MAX(M:M),1,M4) -> 1403000.2 | O4: =IF(N4=MAX(N:N),2,N4) -> 1403000.2 | P4: =IF(O4=MAX(O:O),3,O4) -> 3 | Q4: =IF(P4=MAX(P:P),4,P4) -> 3 | U4: J | V4: V | W4: N | X4: P | Y4: BP | Z4: BC | AA4: Diff | AB4: Pts
B5: =INDIRECT(ADDRESS(4,D1,,,"Groupes")) -> Suisse | C5: 1 | E5: =INDIRECT(ADDRESS(4,D1,,,"Groupes")) -> Suisse | F5: =C5+C9+C11 -> 4 | G5: =C4+C8+C10 -> 4 | H5: =Victoire(C5,C4)+Victoire(C9,C8)+Victoire(C11,C10) -> 1 | I5: =NUL(C5,C4)+NUL(C9,C8)+NUL(C11,C10) -> 1 | J5: =Defaite(C5,C4)+Defaite(C9,C8)+Defaite(C11,C10) -> 1 | K5: =H5+I5+J5 -> 3 | L5: =H5*3+I5 -> 4 | M5: =1000000+L5*100000+(F5-G5)*10000+F5*1000+0.1 -> 1404000.1 | N5: =IF(M5=MAX(M:M),1,M5) -> 1404000.1 | O5: =IF(N5=MAX(N:N),2,N5) -> 2 | P5: =IF(O5=MAX(O:O),3,O5) -> 2 | Q5: =IF(P5=MAX(P:P),4,P5) -> 2 | S5: 1 | T5: =INDIRECT(ADDRESS(MATCH(S5,Q2:Q5,0)+1,5)) -> France | U5: =INDIRECT(ADDRESS(MATCH(S5,$Q$2:$Q$5,0)+1,11)) -> 3 | V5: =INDIRECT(ADDRESS(MATCH(S5,Q$2:Q$5,0)+1,8)) -> 3 | W5: =INDIRECT(ADDRESS(MATCH(S5,Q$2:Q$5,0)+1,9)) -> 0 | X5: =INDIRECT(ADDRESS(MATCH(S5,Q$2:Q$5,0)+1,10)) -> 0 | Y5: =INDIRECT(ADDRESS(MATCH(S5,Q$2:Q$5,0)+1,6)) -> 8 | Z5: =INDIRECT(ADDRESS(MATCH(S5,Q$2:Q$5,0)+1,7)) -> 3 | AA5: =Y5-Z5 -> 5 | AB5: =INDIRECT(ADDRESS(MATCH(S5,Q$2:Q$5,0)+1,12)) -> 9
A6: 2016-06-15 | B6: =INDIRECT(ADDRESS(1,D1,,,"Groupes")) -> France | C6: 2 | S6: 2 | T6: =INDIRECT(ADDRESS(MATCH(S6,Q2:Q5,0)+1,5)) -> Suisse | U6: =INDIRECT(ADDRESS(MATCH(S6,$Q$2:$Q$5,0)+1,11)) -> 3 | V6: =INDIRECT(ADDRESS(MATCH(S6,Q$2:Q$5,0)+1,8)) -> 1 | W6: =INDIRECT(ADDRESS(MATCH(S6,Q$2:Q$5,0)+1,9)) -> 1 | X6: =INDIRECT(ADDRESS(MATCH(S6,Q$2:Q$5,0)+1,10)) -> 1 | Y6: =INDIRECT(ADDRESS(MATCH(S6,Q$2:Q$5,0)+1,6)) -> 4 | Z6: =INDIRECT(ADDRESS(MATCH(S6,Q$2:Q$5,0)+1,7)) -> 4 | AA6: =Y6-Z6 -> 0 | AB6: =INDIRECT(ADDRESS(MATCH(S6,Q$2:Q$5,0)+1,12)) -> 4
B7: =INDIRECT(ADDRESS(3,D1,,,"Groupes")) -> Albanie | C7: 1 | S7: 3 | T7: =INDIRECT(ADDRESS(MATCH(S7,Q2:Q5,0)+1,5)) -> Albanie | U7: =INDIRECT(ADDRESS(MATCH(S7,$Q$2:$Q$5,0)+1,11)) -> 3 | V7: =INDIRECT(ADDRESS(MATCH(S7,Q$2:Q$5,0)+1,8)) -> 1 | W7: =INDIRECT(ADDRESS(MATCH(S7,Q$2:Q$5,0)+1,9)) -> 1 | X7: =INDIRECT(ADDRESS(MATCH(S7,Q$2:Q$5,0)+1,10)) -> 1 | Y7: =INDIRECT(ADDRESS(MATCH(S7,Q$2:Q$5,0)+1,6)) -> 3 | Z7: =INDIRECT(ADDRESS(MATCH(S7,Q$2:Q$5,0)+1,7)) -> 3 | AA7: =Y7-Z7 -> 0 | AB7: =INDIRECT(ADDRESS(MATCH(S7,Q$2:Q$5,0)+1,12)) -> 4
A8: 2016-06-15 | B8: =INDIRECT(ADDRESS(2,D1,,,"Groupes")) -> Roumanie | C8: 0 | S8: 4 | T8: =INDIRECT(ADDRESS(MATCH(S8,Q2:Q5,0)+1,5)) -> Roumanie | U8: =INDIRECT(ADDRESS(MATCH(S8,$Q$2:$Q$5,0)+1,11)) -> 3 | V8: =INDIRECT(ADDRESS(MATCH(S8,Q$2:Q$5,0)+1,8)) -> 0 | W8: =INDIRECT(ADDRESS(MATCH(S8,Q$2:Q$5,0)+1,9)) -> 0 | X8: =INDIRECT(ADDRESS(MATCH(S8,Q$2:Q$5,0)+1,10)) -> 3 | Y8: =INDIRECT(ADDRESS(MATCH(S8,Q$2:Q$5,0)+1,6)) -> 1 | Z8: =INDIRECT(ADDRESS(MATCH(S8,Q$2:Q$5,0)+1,7)) -> 6 | AA8: =Y8-Z8 -> -5 | AB8: =INDIRECT(ADDRESS(MATCH(S8,Q$2:Q$5,0)+1,12)) -> 0
B9: =INDIRECT(ADDRESS(4,D1,,,"Groupes")) -> Suisse | C9: 2
A10: 2016-06-19 | B10: =INDIRECT(ADDRESS(1,D1,,,"Groupes")) -> France | C10: 3 | S10: Groupe A
B11: =INDIRECT(ADDRESS(4,D1,,,"Groupes")) -> Suisse | C11: 1
A12: 2016-06-19 | B12: =INDIRECT(ADDRESS(2,D1,,,"Groupes")) -> Roumanie | C12: 0
B13: =INDIRECT(ADDRESS(3,D1,,,"Groupes")) -> Albanie | C13: 1

Sheet Groupe B
D1: 2
A2: 2016-06-11 | B2: =INDIRECT(ADDRESS(1,D1,,,"Groupes")) -> Angleterre | C2: 1 | E2: =INDIRECT(ADDRESS(1,D1,,,"Groupes")) -> Angleterre | F2: =C2+C6+C10 -> 6 | G2: =C3+C7+C11 -> 4 | H2: =Victoire(C2,C3)+Victoire(C6,C7)+Victoire(C10,C11) -> 1 | I2: =NUL(C2,C3)+NUL(C6,C7)+NUL(C10,C11) -> 2 | J2: =Defaite(C2,C3)+Defaite(C6,C7)+Defaite(C10,C11) -> 0 | K2: =H2+I2+J2 -> 3 | L2: =H2*3+I2 -> 5 | M2: =1000000+L2*100000+(F2-G2)*10000+F2*1000+0.4 -> 1526000.4 | N2: =IF(M2=MAX(M:M),1,M2) -> 1526000.4 | O2: =IF(N2=MAX(N:N),2,N2) -> 2 | P2: =IF(O2=MAX(O:O),3,O2) -> 2 | Q2: =IF(P2=MAX(P:P),4,P2) -> 2 | S2: Classement
B3: =INDIRECT(ADDRESS(2,D1,,,"Groupes")) -> Russie | C3: 1 | E3: =INDIRECT(ADDRESS(2,D1,,,"Groupes")) -> Russie | F3: =C3+C8+C12 -> 5 | G3: =C2+C9+C13 -> 2 | H3: =Victoire(C3,C2)+Victoire(C8,C9)+Victoire(C12,C13) -> 2 | I3: =NUL(C3,C2)+NUL(C8,C9)+NUL(C12,C13) -> 1 | J3: =Defaite(C3,C2)+Defaite(C8,C9)+Defaite(C12,C13) -> 0 | K3: =H3+I3+J3 -> 3 | L3: =H3*3+I3 -> 7 | M3: =1000000+L3*100000+(F3-G3)*10000+F3*1000+0.3 -> 1735000.3 | N3: =IF(M3=MAX(M:M),1,M3) -> 1 | O3: =IF(N3=MAX(N:N),2,N3) -> 1 | P3: =IF(O3=MAX(O:O),3,O3) -> 1 | Q3: =IF(P3=MAX(P:P),4,P3) -> 1
A4: 2016-06-11 | B4: =INDIRECT(ADDRESS(3,D1,,,"Groupes")) -> Pays de Galles | C4: 2 | E4: =INDIRECT(ADDRESS(3,D1,,,"Groupes")) -> Pays de Galles | F4: =C4+C7+C13 -> 5 | G4: =C5+C6+C12 -> 4 | H4: =Victoire(C4,C5)+Victoire(C7,C6)+Victoire(C13,C12) -> 1 | I4: =NUL(C4,C5)+NUL(C7,C6)+NUL(C13,C12) -> 1 | J4: =Defaite(C4,C5)+Defaite(C7,C6)+Defaite(C13,C12) -> 1 | K4: =H4+I4+J4 -> 3 | L4: =H4*3+I4 -> 4 | M4: =1000000+L4*100000+(F4-G4)*10000+F4*1000+0.2 -> 1415000.2 | N4: =IF(M4=MAX(M:M),1,M4) -> 1415000.2 | O4: =IF(N4=MAX(N:N),2,N4) -> 1415000.2 | P4: =IF(O4=MAX(O:O),3,O4) -> 3 | Q4: =IF(P4=MAX(P:P),4,P4) -> 3 | U4: J | V4: V | W4: N | X4: P | Y4: BP | Z4: BC | AA4: Diff | AB4: Pts
B5: =INDIRECT(ADDRESS(4,D1,,,"Groupes")) -> Slovaquie | C5: 0 | E5: =INDIRECT(ADDRESS(4,D1,,,"Groupes")) -> Slovaquie | F5: =C5+C9+C11 -> 1 | G5: =C4+C8+C10 -> 7 | H5: =Victoire(C5,C4)+Victoire(C9,C8)+Victoire(C11,C10) -> 0 | I5: =NUL(C5,C4)+NUL(C9,C8)+NUL(C11,C10) -> 0 | J5: =Defaite(C5,C4)+Defaite(C9,C8)+Defaite(C11,C10) -> 3 | K5: =H5+I5+J5 -> 3 | L5: =H5*3+I5 -> 0 | M5: =1000000+L5*100000+(F5-G5)*10000+F5*1000+0.1 -> 941000.1 | N5: =IF(M5=MAX(M:M),1,M5) -> 941000.1 | O5: =IF(N5=MAX(N:N),2,N5) -> 941000.1 | P5: =IF(O5=MAX(O:O),3,O5) -> 941000.1 | Q5: =IF(P5=MAX(P:P),4,P5) -> 4 | S5: 1 | T5: =INDIRECT(ADDRESS(MATCH(S5,Q2:Q5,0)+1,5)) -> Russie | U5: =INDIRECT(ADDRESS(MATCH(S5,$Q$2:$Q$5,0)+1,11)) -> 3 | V5: =INDIRECT(ADDRESS(MATCH(S5,Q$2:Q$5,0)+1,8)) -> 2 | W5: =INDIRECT(ADDRESS(MATCH(S5,Q$2:Q$5,0)+1,9)) -> 1 | X5: =INDIRECT(ADDRESS(MATCH(S5,Q$2:Q$5,0)+1,10)) -> 0 | Y5: =INDIRECT(ADDRESS(MATCH(S5,Q$2:Q$5,0)+1,6)) -> 5 | Z5: =INDIRECT(ADDRESS(MATCH(S5,Q$2:Q$5,0)+1,7)) -> 2 | AA5: =Y5-Z5 -> 3 | AB5: =INDIRECT(ADDRESS(MATCH(S5,Q$2:Q$5,0)+1,12)) -> 7
A6: 2016-06-16 | B6: =INDIRECT(ADDRESS(1,D1,,,"Groupes")) -> Angleterre | C6: 2 | S6: 2 | T6: =INDIRECT(ADDRESS(MATCH(S6,Q2:Q5,0)+1,5)) -> Angleterre | U6: =INDIRECT(ADDRESS(MATCH(S6,$Q$2:$Q$5,0)+1,11)) -> 3 | V6: =INDIRECT(ADDRESS(MATCH(S6,Q$2:Q$5,0)+1,8)) -> 1 | W6: =INDIRECT(ADDRESS(MATCH(S6,Q$2:Q$5,0)+1,9)) -> 2 | X6: =INDIRECT(ADDRESS(MATCH(S6,Q$2:Q$5,0)+1,10)) -> 0 | Y6: =INDIRECT(ADDRESS(MATCH(S6,Q$2:Q$5,0)+1,6)) -> 6 | Z6: =INDIRECT(ADDRESS(MATCH(S6,Q$2:Q$5,0)+1,7)) -> 4 | AA6: =Y6-Z6 -> 2 | AB6: =INDIRECT(ADDRESS(MATCH(S6,Q$2:Q$5,0)+1,12)) -> 5
B7: =INDIRECT(ADDRESS(3,D1,,,"Groupes")) -> Pays de Galles | C7: 2 | S7: 3 | T7: =INDIRECT(ADDRESS(MATCH(S7,Q2:Q5,0)+1,5)) -> Pays de Galles | U7: =INDIRECT(ADDRESS(MATCH(S7,$Q$2:$Q$5,0)+1,11)) -> 3 | V7: =INDIRECT(ADDRESS(MATCH(S7,Q$2:Q$5,0)+1,8)) -> 1 | W7: =INDIRECT(ADDRESS(MATCH(S7,Q$2:Q$5,0)+1,9)) -> 1 | X7: =INDIRECT(ADDRESS(MATCH(S7,Q$2:Q$5,0)+1,10)) -> 1 | Y7: =INDIRECT(ADDRESS(MATCH(S7,Q$2:Q$5,0)+1,6)) -> 5 | Z7: =INDIRECT(ADDRESS(MATCH(S7,Q$2:Q$5,0)+1,7)) -> 4 | AA7: =Y7-Z7 -> 1 | AB7: =INDIRECT(ADDRESS(MATCH(S7,Q$2:Q$5,0)+1,12)) -> 4
A8: 2016-06-15 | B8: =INDIRECT(ADDRESS(2,D1,,,"Groupes")) -> Russie | C8: 2 | S8: 4 | T8: =INDIRECT(ADDRESS(MATCH(S8,Q2:Q5,0)+1,5)) -> Slovaquie | U8: =INDIRECT(ADDRESS(MATCH(S8,$Q$2:$Q$5,0)+1,11)) -> 3 | V8: =INDIRECT(ADDRESS(MATCH(S8,Q$2:Q$5,0)+1,8)) -> 0 | W8: =INDIRECT(ADDRESS(MATCH(S8,Q$2:Q$5,0)+1,9)) -> 0 | X8: =INDIRECT(ADDRESS(MATCH(S8,Q$2:Q$5,0)+1,10)) -> 3 | Y8: =INDIRECT(ADDRESS(MATCH(S8,Q$2:Q$5,0)+1,6)) -> 1 | Z8: =INDIRECT(ADDRESS(MATCH(S8,Q$2:Q$5,0)+1,7)) -> 7 | AA8: =Y8-Z8 -> -6 | AB8: =INDIRECT(ADDRESS(MATCH(S8,Q$2:Q$5,0)+1,12)) -> 0
B9: =INDIRECT(ADDRESS(4,D1,,,"Groupes")) -> Slovaquie | C9: 0
A10: 2016-06-20 | B10: =INDIRECT(ADDRESS(1,D1,,,"Groupes")) -> Angleterre | C10: 3 | S10: Groupe B
B11: =INDIRECT(ADDRESS(4,D1,,,"Groupes")) -> Slovaquie | C11: 1
A12: 2016-06-20 | B12: =INDIRECT(ADDRESS(2,D1,,,"Groupes")) -> Russie | C12: 2
B13: =INDIRECT(ADDRESS(3,D1,,,"Groupes")) -> Pays de Galles | C13: 1

Sheet Groupe C
D1: 3
A2: 2016-06-12 | B2: =INDIRECT(ADDRESS(1,D1,,,"Groupes")) -> Allemagne | C2: 2 | E2: =INDIRECT(ADDRESS(1,D1,,,"Groupes")) -> Allemagne | F2: =C2+C6+C10 -> 8 | G2: =C3+C7+C11 -> 2 | H2: =Victoire(C2,C3)+Victoire(C6,C7)+Victoire(C10,C11) -> 3 | I2: =NUL(C2,C3)+NUL(C6,C7)+NUL(C10,C11) -> 0 | J2: =Defaite(C2,C3)+Defaite(C6,C7)+Defaite(C10,C11) -> 0 | K2: =H2+I2+J2 -> 3 | L2: =H2*3+I2 -> 9 | M2: =1000000+L2*100000+(F2-G2)*10000+F2*1000+0.4 -> 1968000.4 | N2: =IF(M2=MAX(M:M),1,M2) -> 1 | O2: =IF(N2=MAX(N:N),2,N2) -> 1 | P2: =IF(O2=MAX(O:O),3,O2) -> 1 | Q2: =IF(P2=MAX(P:P),4,P2) -> 1 | S2: Classement
B3: =INDIRECT(ADDRESS(2,D1,,,"Groupes")) -> Ukraine | C3: 0 | E3: =INDIRECT(ADDRESS(2,D1,,,"Groupes")) -> Ukraine | F3: =C3+C8+C12 -> 0 | G3: =C2+C9+C13 -> 4 | H3: =Victoire(C3,C2)+Victoire(C8,C9)+Victoire(C12,C13) -> 0 | I3: =NUL(C3,C2)+NUL(C8,C9)+NUL(C12,C13) -> 1 | J3: =Defaite(C3,C2)+Defaite(C8,C9)+Defaite(C12,C13) -> 2 | K3: =H3+I3+J3 -> 3 | L3: =H3*3+I3 -> 1 | M3: =1000000+L3*100000+(F3-G3)*10000+F3*1000+0.3 -> 1060000.3 | N3: =IF(M3=MAX(M:M),1,M3) -> 1060000.3 | O3: =IF(N3=MAX(N:N),2,N3) -> 1060000.3 | P3: =IF(O3=MAX(O:O),3,O3) -> 1060000.3 | Q3: =IF(P3=MAX(P:P),4,P3) -> 4
A4: 2016-06-12 | B4: =INDIRECT(ADDRESS(3,D1,,,"Groupes")) -> Pologne | C4: 1 | E4: =INDIRECT(ADDRESS(3,D1,,,"Groupes")) -> Pologne | F4: =C4+C7+C13 -> 4 | G4: =C5+C6+C12 -> 4 | H4: =Victoire(C4,C5)+Victoire(C7,C6)+Victoire(C13,C12) -> 1 | I4: =NUL(C4,C5)+NUL(C7,C6)+NUL(C13,C12) -> 1 | J4: =Defaite(C4,C5)+Defaite(C7,C6)+Defaite(C13,C12) -> 1 | K4: =H4+I4+J4 -> 3 | L4: =H4*3+I4 -> 4 | M4: =1000000+L4*100000+(F4-G4)*10000+F4*1000+0.2 -> 1404000.2 | N4: =IF(M4=MAX(M:M),1,M4) -> 1404000.2 | O4: =IF(N4=MAX(N:N),2,N4) -> 2 | P4: =IF(O4=MAX(O:O),3,O4) -> 2 | Q4: =IF(P4=MAX(P:P),4,P4) -> 2 | U4: J | V4: V | W4: N | X4: P | Y4: BP | Z4: BC | AA4: Diff | AB4: Pts
B5: =INDIRECT(ADDRESS(4,D1,,,"Groupes")) -> Irlande du Nord | C5: 1 | E5: =INDIRECT(ADDRESS(4,D1,,,"Groupes")) -> Irlande du Nord | F5: =C5+C9+C11 -> 2 | G5: =C4+C8+C10 -> 4 | H5: =Victoire(C5,C4)+Victoire(C9,C8)+Victoire(C11,C10) -> 0 | I5: =NUL(C5,C4)+NUL(C9,C8)+NUL(C11,C10) -> 2 | J5: =Defaite(C5,C4)+Defaite(C9,C8)+Defaite(C11,C10) -> 1 | K5: =H5+I5+J5 -> 3 | L5: =H5*3+I5 -> 2 | M5: =1000000+L5*100000+(F5-G5)*10000+F5*1000+0.1 -> 1182000.1 | N5: =IF(M5=MAX(M:M),1,M5) -> 1182000.1 | O5: =IF(N5=MAX(N:N),2,N5) -> 1182000.1 | P5: =IF(O5=MAX(O:O),3,O5) -> 3 | Q5: =IF(P5=MAX(P:P),4,P5) -> 3 | S5: 1 | T5: =INDIRECT(ADDRESS(MATCH(S5,Q2:Q5,0)+1,5)) -> Allemagne | U5: =INDIRECT(ADDRESS(MATCH(S5,$Q$2:$Q$5,0)+1,11)) -> 3 | V5: =INDIRECT(ADDRESS(MATCH(S5,Q$2:Q$5,0)+1,8)) -> 3 | W5: =INDIRECT(ADDRESS(MATCH(S5,Q$2:Q$5,0)+1,9)) -> 0 | X5: =INDIRECT(ADDRESS(MATCH(S5,Q$2:Q$5,0)+1,10)) -> 0 | Y5: =INDIRECT(ADDRESS(MATCH(S5,Q$2:Q$5,0)+1,6)) -> 8 | Z5: =INDIRECT(ADDRESS(MATCH(S5,Q$2:Q$5,0)+1,7)) -> 2 | AA5: =Y5-Z5 -> 6 | AB5: =INDIRECT(ADDRESS(MATCH(S5,Q$2:Q$5,0)+1,12)) -> 9
A6: 2016-06-16 | B6: =INDIRECT(ADDRESS(1,D1,,,"Groupes")) -> Allemagne | C6: 3 | S6: 2 | T6: =INDIRECT(ADDRESS(MATCH(S6,Q2:Q5,0)+1,5)) -> Pologne | U6: =INDIRECT(ADDRESS(MATCH(S6,$Q$2:$Q$5,0)+1,11)) -> 3 | V6: =INDIRECT(ADDRESS(MATCH(S6,Q$2:Q$5,0)+1,8)) -> 1 | W6: =INDIRECT(ADDRESS(MATCH(S6,Q$2:Q$5,0)+1,9)) -> 1 | X6: =INDIRECT(ADDRESS(MATCH(S6,Q$2:Q$5,0)+1,10)) -> 1 | Y6: =INDIRECT(ADDRESS(MATCH(S6,Q$2:Q$5,0)+1,6)) -> 4 | Z6: =INDIRECT(ADDRESS(MATCH(S6,Q$2:Q$5,0)+1,7)) -> 4 | AA6: =Y6-Z6 -> 0 | AB6: =INDIRECT(ADDRESS(MATCH(S6,Q$2:Q$5,0)+1,12)) -> 4
B7: =INDIRECT(ADDRESS(3,D1,,,"Groupes")) -> Pologne | C7: 1 | S7: 3 | T7: =INDIRECT(ADDRESS(MATCH(S7,Q2:Q5,0)+1,5)) -> Irlande du Nord | U7: =INDIRECT(ADDRESS(MATCH(S7,$Q$2:$Q$5,0)+1,11)) -> 3 | V7: =INDIRECT(ADDRESS(MATCH(S7,Q$2:Q$5,0)+1,8)) -> 0 | W7: =INDIRECT(ADDRESS(MATCH(S7,Q$2:Q$5,0)+1,9)) -> 2 | X7: =INDIRECT(ADDRESS(MATCH(S7,Q$2:Q$5,0)+1,10)) -> 1 | Y7: =INDIRECT(ADDRESS(MATCH(S7,Q$2:Q$5,0)+1,6)) -> 2 | Z7: =INDIRECT(ADDRESS(MATCH(S7,Q$2:Q$5,0)+1,7)) -> 4 | AA7: =Y7-Z7 -> -2 | AB7: =INDIRECT(ADDRESS(MATCH(S7,Q$2:Q$5,0)+1,12)) -> 2
A8: 2016-06-16 | B8: =INDIRECT(ADDRESS(2,D1,,,"Groupes")) -> Ukraine | C8: 0 | S8: 4 | T8: =INDIRECT(ADDRESS(MATCH(S8,Q2:Q5,0)+1,5)) -> Ukraine | U8: =INDIRECT(ADDRESS(MATCH(S8,$Q$2:$Q$5,0)+1,11)) -> 3 | V8: =INDIRECT(ADDRESS(MATCH(S8,Q$2:Q$5,0)+1,8)) -> 0 | W8: =INDIRECT(ADDRESS(MATCH(S8,Q$2:Q$5,0)+1,9)) -> 1 | X8: =INDIRECT(ADDRESS(MATCH(S8,Q$2:Q$5,0)+1,10)) -> 2 | Y8: =INDIRECT(ADDRESS(MATCH(S8,Q$2:Q$5,0)+1,6)) -> 0 | Z8: =INDIRECT(ADDRESS(MATCH(S8,Q$2:Q$5,0)+1,7)) -> 4 | AA8: =Y8-Z8 -> -4 | AB8: =INDIRECT(ADDRESS(MATCH(S8,Q$2:Q$5,0)+1,12)) -> 1
B9: =INDIRECT(ADDRESS(4,D1,,,"Groupes")) -> Irlande du Nord | C9: 0
A10: 2016-06-21 | B10: =INDIRECT(ADDRESS(1,D1,,,"Groupes")) -> Allemagne | C10: 3 | S10: Groupe C
B11: =INDIRECT(ADDRESS(4,D1,,,"Groupes")) -> Irlande du Nord | C11: 1
A12: 2016-06-21 | B12: =INDIRECT(ADDRESS(2,D1,,,"Groupes")) -> Ukraine | C12: 0
B13: =INDIRECT(ADDRESS(3,D1,,,"Groupes")) -> Pologne | C13: 2

Sheet Groupe D
D1: 4
A2: 2016-06-13 | B2: =INDIRECT(ADDRESS(1,D1,,,"Groupes")) -> Espagne | C2: 1 | E2: =INDIRECT(ADDRESS(1,D1,,,"Groupes")) -> Espagne | F2: =C2+C6+C10 -> 5 | G2: =C3+C7+C11 -> 3 | H2: =Victoire(C2,C3)+Victoire(C6,C7)+Victoire(C10,C11) -> 1 | I2: =NUL(C2,C3)+NUL(C6,C7)+NUL(C10,C11) -> 2 | J2: =Defaite(C2,C3)+Defaite(C6,C7)+Defaite(C10,C11) -> 0 | K2: =H2+I2+J2 -> 3 | L2: =H2*3+I2 -> 5 | M2: =1000000+L2*100000+(F2-G2)*10000+F2*1000+0.4 -> 1525000.4 | N2: =IF(M2=MAX(M:M),1,M2) -> 1 | O2: =IF(N2=MAX(N:N),2,N2) -> 1 | P2: =IF(O2=MAX(O:O),3,O2) -> 1 | Q2: =IF(P2=MAX(P:P),4,P2) -> 1 | S2: Classement
B3: =INDIRECT(ADDRESS(2,D1,,,"Groupes")) -> République Tchèque | C3: 1 | E3: =INDIRECT(ADDRESS(2,D1,,,"Groupes")) -> République Tchèque | F3: =C3+C8+C12 -> 4 | G3: =C2+C9+C13 -> 3 | H3: =Victoire(C3,C2)+Victoire(C8,C9)+Victoire(C12,C13) -> 1 | I3: =NUL(C3,C2)+NUL(C8,C9)+NUL(C12,C13) -> 2 | J3: =Defaite(C3,C2)+Defaite(C8,C9)+Defaite(C12,C13) -> 0 | K3: =H3+I3+J3 -> 3 | L3: =H3*3+I3 -> 5 | M3: =1000000+L3*100000+(F3-G3)*10000+F3*1000+0.3 -> 1514000.3 | N3: =IF(M3=MAX(M:M),1,M3) -> 1514000.3 | O3: =IF(N3=MAX(N:N),2,N3) -> 2 | P3: =IF(O3=MAX(O:O),3,O3) -> 2 | Q3: =IF(P3=MAX(P:P),4,P3) -> 2
A4: 2016-06-12 | B4: =INDIRECT(ADDRESS(3,D1,,,"Groupes")) -> Turquie | C4: 2 | E4: =INDIRECT(ADDRESS(3,D1,,,"Groupes")) -> Turquie | F4: =C4+C7+C13 -> 3 | G4: =C5+C6+C12 -> 4 | H4: =Victoire(C4,C5)+Victoire(C7,C6)+Victoire(C13,C12) -> 1 | I4: =NUL(C4,C5)+NUL(C7,C6)+NUL(C13,C12) -> 1 | J4: =Defaite(C4,C5)+Defaite(C7,C6)+Defaite(C13,C12) -> 1 | K4: =H4+I4+J4 -> 3 | L4: =H4*3+I4 -> 4 | M4: =1000000+L4*100000+(F4-G4)*10000+F4*1000+0.2 -> 1393000.2 | N4: =IF(M4=MAX(M:M),1,M4) -> 1393000.2 | O4: =IF(N4=MAX(N:N),2,N4) -> 1393000.2 | P4: =IF(O4=MAX(O:O),3,O4) -> 3 | Q4: =IF(P4=MAX(P:P),4,P4) -> 3 | U4: J | V4: V | W4: N | X4: P | Y4: BP | Z4: BC | AA4: Diff | AB4: Pts
B5: =INDIRECT(ADDRESS(4,D1,,,"Groupes")) -> Croatie | C5: 1 | E5: =INDIRECT(ADDRESS(4,D1,,,"Groupes")) -> Croatie | F5: =C5+C9+C11 -> 4 | G5: =C4+C8+C10 -> 6 | H5: =Victoire(C5,C4)+Victoire(C9,C8)+Victoire(C11,C10) -> 0 | I5: =NUL(C5,C4)+NUL(C9,C8)+NUL(C11,C10) -> 1 | J5: =Defaite(C5,C4)+Defaite(C9,C8)+Defaite(C11,C10) -> 2 | K5: =H5+I5+J5 -> 3 | L5: =H5*3+I5 -> 1 | M5: =1000000+L5*100000+(F5-G5)*10000+F5*1000+0.1 -> 1084000.1 | N5: =IF(M5=MAX(M:M),1,M5) -> 1084000.1 | O5: =IF(N5=MAX(N:N),2,N5) -> 1084000.1 | P5: =IF(O5=MAX(O:O),3,O5) -> 1084000.1 | Q5: =IF(P5=MAX(P:P),4,P5) -> 4 | S5: 1 | T5: =INDIRECT(ADDRESS(MATCH(S5,Q2:Q5,0)+1,5)) -> Espagne | U5: =INDIRECT(ADDRESS(MATCH(S5,$Q$2:$Q$5,0)+1,11)) -> 3 | V5: =INDIRECT(ADDRESS(MATCH(S5,Q$2:Q$5,0)+1,8)) -> 1 | W5: =INDIRECT(ADDRESS(MATCH(S5,Q$2:Q$5,0)+1,9)) -> 2 | X5: =INDIRECT(ADDRESS(MATCH(S5,Q$2:Q$5,0)+1,10)) -> 0 | Y5: =INDIRECT(ADDRESS(MATCH(S5,Q$2:Q$5,0)+1,6)) -> 5 | Z5: =INDIRECT(ADDRESS(MATCH(S5,Q$2:Q$5,0)+1,7)) -> 3 | AA5: =Y5-Z5 -> 2 | AB5: =INDIRECT(ADDRESS(MATCH(S5,Q$2:Q$5,0)+1,12)) -> 5
A6: 2016-06-17 | B6: =INDIRECT(ADDRESS(1,D1,,,"Groupes")) -> Espagne | C6: 2 | S6: 2 | T6: =INDIRECT(ADDRESS(MATCH(S6,Q2:Q5,0)+1,5)) -> République Tchèque | U6: =INDIRECT(ADDRESS(MATCH(S6,$Q$2:$Q$5,0)+1,11)) -> 3 | V6: =INDIRECT(ADDRESS(MATCH(S6,Q$2:Q$5,0)+1,8)) -> 1 | W6: =INDIRECT(ADDRESS(MATCH(S6,Q$2:Q$5,0)+1,9)) -> 2 | X6: =INDIRECT(ADDRESS(MATCH(S6,Q$2:Q$5,0)+1,10)) -> 0 | Y6: =INDIRECT(ADDRESS(MATCH(S6,Q$2:Q$5,0)+1,6)) -> 4 | Z6: =INDIRECT(ADDRESS(MATCH(S6,Q$2:Q$5,0)+1,7)) -> 3 | AA6: =Y6-Z6 -> 1 | AB6: =INDIRECT(ADDRESS(MATCH(S6,Q$2:Q$5,0)+1,12)) -> 5
B7: =INDIRECT(ADDRESS(3,D1,,,"Groupes")) -> Turquie | C7: 0 | S7: 3 | T7: =INDIRECT(ADDRESS(MATCH(S7,Q2:Q5,0)+1,5)) -> Turquie | U7: =INDIRECT(ADDRESS(MATCH(S7,$Q$2:$Q$5,0)+1,11)) -> 3 | V7: =INDIRECT(ADDRESS(MATCH(S7,Q$2:Q$5,0)+1,8)) -> 1 | W7: =INDIRECT(ADDRESS(MATCH(S7,Q$2:Q$5,0)+1,9)) -> 1 | X7: =INDIRECT(ADDRESS(MATCH(S7,Q$2:Q$5,0)+1,10)) -> 1 | Y7: =INDIRECT(ADDRESS(MATCH(S7,Q$2:Q$5,0)+1,6)) -> 3 | Z7: =INDIRECT(ADDRESS(MATCH(S7,Q$2:Q$5,0)+1,7)) -> 4 | AA7: =Y7-Z7 -> -1 | AB7: =INDIRECT(ADDRESS(MATCH(S7,Q$2:Q$5,0)+1,12)) -> 4
A8: 2016-06-17 | B8: =INDIRECT(ADDRESS(2,D1,,,"Groupes")) -> République Tchèque | C8: 2 | S8: 4 | T8: =INDIRECT(ADDRESS(MATCH(S8,Q2:Q5,0)+1,5)) -> Croatie | U8: =INDIRECT(ADDRESS(MATCH(S8,$Q$2:$Q$5,0)+1,11)) -> 3 | V8: =INDIRECT(ADDRESS(MATCH(S8,Q$2:Q$5,0)+1,8)) -> 0 | W8: =INDIRECT(ADDRESS(MATCH(S8,Q$2:Q$5,0)+1,9)) -> 1 | X8: =INDIRECT(ADDRESS(MATCH(S8,Q$2:Q$5,0)+1,10)) -> 2 | Y8: =INDIRECT(ADDRESS(MATCH(S8,Q$2:Q$5,0)+1,6)) -> 4 | Z8: =INDIRECT(ADDRESS(MATCH(S8,Q$2:Q$5,0)+1,7)) -> 6 | AA8: =Y8-Z8 -> -2 | AB8: =INDIRECT(ADDRESS(MATCH(S8,Q$2:Q$5,0)+1,12)) -> 1
B9: =INDIRECT(ADDRESS(4,D1,,,"Groupes")) -> Croatie | C9: 1
A10: 2016-06-21 | B10: =INDIRECT(ADDRESS(1,D1,,,"Groupes")) -> Espagne | C10: 2 | S10: Groupe D
B11: =INDIRECT(ADDRESS(4,D1,,,"Groupes")) -> Croatie | C11: 2
A12: 2016-06-21 | B12: =INDIRECT(ADDRESS(2,D1,,,"Groupes")) -> République Tchèque | C12: 1
B13: =INDIRECT(ADDRESS(3,D1,,,"Groupes")) -> Turquie | C13: 1

Sheet Groupe E
D1: 5
A2: 2016-06-13 | B2: =INDIRECT(ADDRESS(1,D1,,,"Groupes")) -> Belgique | C2: 3 | E2: =INDIRECT(ADDRESS(1,D1,,,"Groupes")) -> Belgique | F2: =C2+C6+C10 -> 7 | G2: =C3+C7+C11 -> 2 | H2: =Victoire(C2,C3)+Victoire(C6,C7)+Victoire(C10,C11) -> 2 | I2: =NUL(C2,C3)+NUL(C6,C7)+NUL(C10,C11) -> 1 | J2: =Defaite(C2,C3)+Defaite(C6,C7)+Defaite(C10,C11) -> 0 | K2: =H2+I2+J2 -> 3 | L2: =H2*3+I2 -> 7 | M2: =1000000+L2*100000+(F2-G2)*10000+F2*1000+0.4 -> 1757000.4 | N2: =IF(M2=MAX(M:M),1,M2) -> 1 | O2: =IF(N2=MAX(N:N),2,N2) -> 1 | P2: =IF(O2=MAX(O:O),3,O2) -> 1 | Q2: =IF(P2=MAX(P:P),4,P2) -> 1 | S2: Classement
B3: =INDIRECT(ADDRESS(2,D1,,,"Groupes")) -> Italie | C3: 0 | E3: =INDIRECT(ADDRESS(2,D1,,,"Groupes")) -> Italie | F3: =C3+C8+C12 -> 2 | G3: =C2+C9+C13 -> 7 | H3: =Victoire(C3,C2)+Victoire(C8,C9)+Victoire(C12,C13) -> 0 | I3: =NUL(C3,C2)+NUL(C8,C9)+NUL(C12,C13) -> 1 | J3: =Defaite(C3,C2)+Defaite(C8,C9)+Defaite(C12,C13) -> 2 | K3: =H3+I3+J3 -> 3 | L3: =H3*3+I3 -> 1 | M3: =1000000+L3*100000+(F3-G3)*10000+F3*1000+0.3 -> 1052000.3 | N3: =IF(M3=MAX(M:M),1,M3) -> 1052000.3 | O3: =IF(N3=MAX(N:N),2,N3) -> 1052000.3 | P3: =IF(O3=MAX(O:O),3,O3) -> 1052000.3 | Q3: =IF(P3=MAX(P:P),4,P3) -> 4
A4: 2016-06-13 | B4: =INDIRECT(ADDRESS(3,D1,,,"Groupes")) -> Irlande | C4: 1 | E4: =INDIRECT(ADDRESS(3,D1,,,"Groupes")) -> Irlande | F4: =C4+C7+C13 -> 2 | G4: =C5+C6+C12 -> 5 | H4: =Victoire(C4,C5)+Victoire(C7,C6)+Victoire(C13,C12) -> 0 | I4: =NUL(C4,C5)+NUL(C7,C6)+NUL(C13,C12) -> 1 | J4: =Defaite(C4,C5)+Defaite(C7,C6)+Defaite(C13,C12) -> 2 | K4: =H4+I4+J4 -> 3 | L4: =H4*3+I4 -> 1 | M4: =1000000+L4*100000+(F4-G4)*10000+F4*1000+0.2 -> 1072000.2 | N4: =IF(M4=MAX(M:M),1,M4) -> 1072000.2 | O4: =IF(N4=MAX(N:N),2,N4) -> 1072000.2 | P4: =IF(O4=MAX(O:O),3,O4) -> 3 | Q4: =IF(P4=MAX(P:P),4,P4) -> 3 | U4: J | V4: V | W4: N | X4: P | Y4: BP | Z4: BC | AA4: Diff | AB4: Pts
B5: =INDIRECT(ADDRESS(4,D1,,,"Groupes")) -> Suède | C5: 2 | E5: =INDIRECT(ADDRESS(4,D1,,,"Groupes")) -> Suède | F5: =C5+C9+C11 -> 7 | G5: =C4+C8+C10 -> 4 | H5: =Victoire(C5,C4)+Victoire(C9,C8)+Victoire(C11,C10) -> 2 | I5: =NUL(C5,C4)+NUL(C9,C8)+NUL(C11,C10) -> 1 | J5: =Defaite(C5,C4)+Defaite(C9,C8)+Defaite(C11,C10) -> 0 | K5: =H5+I5+J5 -> 3 | L5: =H5*3+I5 -> 7 | M5: =1000000+L5*100000+(F5-G5)*10000+F5*1000+0.1 -> 1737000.1 | N5: =IF(M5=MAX(M:M),1,M5) -> 1737000.1 | O5: =IF(N5=MAX(N:N),2,N5) -> 2 | P5: =IF(O5=MAX(O:O),3,O5) -> 2 | Q5: =IF(P5=MAX(P:P),4,P5) -> 2 | S5: 1 | T5: =INDIRECT(ADDRESS(MATCH(S5,Q2:Q5,0)+1,5)) -> Belgique | U5: =INDIRECT(ADDRESS(MATCH(S5,$Q$2:$Q$5,0)+1,11)) -> 3 | V5: =INDIRECT(ADDRESS(MATCH(S5,Q$2:Q$5,0)+1,8)) -> 2 | W5: =INDIRECT(ADDRESS(MATCH(S5,Q$2:Q$5,0)+1,9)) -> 1 | X5: =INDIRECT(ADDRESS(MATCH(S5,Q$2:Q$5,0)+1,10)) -> 0 | Y5: =INDIRECT(ADDRESS(MATCH(S5,Q$2:Q$5,0)+1,6)) -> 7 | Z5: =INDIRECT(ADDRESS(MATCH(S5,Q$2:Q$5,0)+1,7)) -> 2 | AA5: =Y5-Z5 -> 5 | AB5: =INDIRECT(ADDRESS(MATCH(S5,Q$2:Q$5,0)+1,12)) -> 7
A6: 2016-06-18 | B6: =INDIRECT(ADDRESS(1,D1,,,"Groupes")) -> Belgique | C6: 2 | S6: 2 | T6: =INDIRECT(ADDRESS(MATCH(S6,Q2:Q5,0)+1,5)) -> Suède | U6: =INDIRECT(ADDRESS(MATCH(S6,$Q$2:$Q$5,0)+1,11)) -> 3 | V6: =INDIRECT(ADDRESS(MATCH(S6,Q$2:Q$5,0)+1,8)) -> 2 | W6: =INDIRECT(ADDRESS(MATCH(S6,Q$2:Q$5,0)+1,9)) -> 1 | X6: =INDIRECT(ADDRESS(MATCH(S6,Q$2:Q$5,0)+1,10)) -> 0 | Y6: =INDIRECT(ADDRESS(MATCH(S6,Q$2:Q$5,0)+1,6)) -> 7 | Z6: =INDIRECT(ADDRESS(MATCH(S6,Q$2:Q$5,0)+1,7)) -> 4 | AA6: =Y6-Z6 -> 3 | AB6: =INDIRECT(ADDRESS(MATCH(S6,Q$2:Q$5,0)+1,12)) -> 7
B7: =INDIRECT(ADDRESS(3,D1,,,"Groupes")) -> Irlande | C7: 0 | S7: 3 | T7: =INDIRECT(ADDRESS(MATCH(S7,Q2:Q5,0)+1,5)) -> Irlande | U7: =INDIRECT(ADDRESS(MATCH(S7,$Q$2:$Q$5,0)+1,11)) -> 3 | V7: =INDIRECT(ADDRESS(MATCH(S7,Q$2:Q$5,0)+1,8)) -> 0 | W7: =INDIRECT(ADDRESS(MATCH(S7,Q$2:Q$5,0)+1,9)) -> 1 | X7: =INDIRECT(ADDRESS(MATCH(S7,Q$2:Q$5,0)+1,10)) -> 2 | Y7: =INDIRECT(ADDRESS(MATCH(S7,Q$2:Q$5,0)+1,6)) -> 2 | Z7: =INDIRECT(ADDRESS(MATCH(S7,Q$2:Q$5,0)+1,7)) -> 5 | AA7: =Y7-Z7 -> -3 | AB7: =INDIRECT(ADDRESS(MATCH(S7,Q$2:Q$5,0)+1,12)) -> 1
A8: 2016-06-17 | B8: =INDIRECT(ADDRESS(2,D1,,,"Groupes")) -> Italie | C8: 1 | S8: 4 | T8: =INDIRECT(ADDRESS(MATCH(S8,Q2:Q5,0)+1,5)) -> Italie | U8: =INDIRECT(ADDRESS(MATCH(S8,$Q$2:$Q$5,0)+1,11)) -> 3 | V8: =INDIRECT(ADDRESS(MATCH(S8,Q$2:Q$5,0)+1,8)) -> 0 | W8: =INDIRECT(ADDRESS(MATCH(S8,Q$2:Q$5,0)+1,9)) -> 1 | X8: =INDIRECT(ADDRESS(MATCH(S8,Q$2:Q$5,0)+1,10)) -> 2 | Y8: =INDIRECT(ADDRESS(MATCH(S8,Q$2:Q$5,0)+1,6)) -> 2 | Z8: =INDIRECT(ADDRESS(MATCH(S8,Q$2:Q$5,0)+1,7)) -> 7 | AA8: =Y8-Z8 -> -5 | AB8: =INDIRECT(ADDRESS(MATCH(S8,Q$2:Q$5,0)+1,12)) -> 1
B9: =INDIRECT(ADDRESS(4,D1,,,"Groupes")) -> Suède | C9: 3
A10: 2016-06-22 | B10: =INDIRECT(ADDRESS(1,D1,,,"Groupes")) -> Belgique | C10: 2 | S10: Groupe E
B11: =INDIRECT(ADDRESS(4,D1,,,"Groupes")) -> Suède | C11: 2
A12: 2016-06-22 | B12: =INDIRECT(ADDRESS(2,D1,,,"Groupes")) -> Italie | C12: 1
B13: =INDIRECT(ADDRESS(3,D1,,,"Groupes")) -> Irlande | C13: 1

Sheet Groupe F
D1: 6
A2: 2016-06-14 | B2: =INDIRECT(ADDRESS(1,D1,,,"Groupes")) -> Portugal | C2: 3 | E2: =INDIRECT(ADDRESS(1,D1,,,"Groupes")) -> Portugal | F2: =C2+C6+C10 -> 8 | G2: =C3+C7+C11 -> 4 | H2: =Victoire(C2,C3)+Victoire(C6,C7)+Victoire(C10,C11) -> 2 | I2: =NUL(C2,C3)+NUL(C6,C7)+NUL(C10,C11) -> 0 | J2: =Defaite(C2,C3)+Defaite(C6,C7)+Defaite(C10,C11) -> 1 | K2: =H2+I2+J2 -> 3 | L2: =H2*3+I2 -> 6 | M2: =1000000+L2*100000+(F2-G2)*10000+F2*1000+0.4 -> 1648000.4 | N2: =IF(M2=MAX(M:M),1,M2) -> 1 | O2: =IF(N2=MAX(N:N),2,N2) -> 1 | P2: =IF(O2=MAX(O:O),3,O2) -> 1 | Q2: =IF(P2=MAX(P:P),4,P2) -> 1 | S2: Classement
B3: =INDIRECT(ADDRESS(2,D1,,,"Groupes")) -> Islande | C3: 1 | E3: =INDIRECT(ADDRESS(2,D1,,,"Groupes")) -> Islande | F3: =C3+C8+C12 -> 5 | G3: =C2+C9+C13 -> 5 | H3: =Victoire(C3,C2)+Victoire(C8,C9)+Victoire(C12,C13) -> 2 | I3: =NUL(C3,C2)+NUL(C8,C9)+NUL(C12,C13) -> 0 | J3: =Defaite(C3,C2)+Defaite(C8,C9)+Defaite(C12,C13) -> 1 | K3: =H3+I3+J3 -> 3 | L3: =H3*3+I3 -> 6 | M3: =1000000+L3*100000+(F3-G3)*10000+F3*1000+0.3 -> 1605000.3 | N3: =IF(M3=MAX(M:M),1,M3) -> 1605000.3 | O3: =IF(N3=MAX(N:N),2,N3) -> 2 | P3: =IF(O3=MAX(O:O),3,O3) -> 2 | Q3: =IF(P3=MAX(P:P),4,P3) -> 2
A4: 2016-06-14 | B4: =INDIRECT(ADDRESS(3,D1,,,"Groupes")) -> Autriche | C4: 1 | E4: =INDIRECT(ADDRESS(3,D1,,,"Groupes")) -> Autriche | F4: =C4+C7+C13 -> 3 | G4: =C5+C6+C12 -> 6 | H4: =Victoire(C4,C5)+Victoire(C7,C6)+Victoire(C13,C12) -> 1 | I4: =NUL(C4,C5)+NUL(C7,C6)+NUL(C13,C12) -> 0 | J4: =Defaite(C4,C5)+Defaite(C7,C6)+Defaite(C13,C12) -> 2 | K4: =H4+I4+J4 -> 3 | L4: =H4*3+I4 -> 3 | M4: =1000000+L4*100000+(F4-G4)*10000+F4*1000+0.2 -> 1273000.2 | N4: =IF(M4=MAX(M:M),1,M4) -> 1273000.2 | O4: =IF(N4=MAX(N:N),2,N4) -> 1273000.2 | P4: =IF(O4=MAX(O:O),3,O4) -> 1273000.2 | Q4: =IF(P4=MAX(P:P),4,P4) -> 4 | U4: J | V4: V | W4: N | X4: P | Y4: BP | Z4: BC | AA4: Diff | AB4: Pts
B5: =INDIRECT(ADDRESS(4,D1,,,"Groupes")) -> Hongrie | C5: 0 | E5: =INDIRECT(ADDRESS(4,D1,,,"Groupes")) -> Hongrie | F5: =C5+C9+C11 -> 3 | G5: =C4+C8+C10 -> 4 | H5: =Victoire(C5,C4)+Victoire(C9,C8)+Victoire(C11,C10) -> 1 | I5: =NUL(C5,C4)+NUL(C9,C8)+NUL(C11,C10) -> 0 | J5: =Defaite(C5,C4)+Defaite(C9,C8)+Defaite(C11,C10) -> 2 | K5: =H5+I5+J5 -> 3 | L5: =H5*3+I5 -> 3 | M5: =1000000+L5*100000+(F5-G5)*10000+F5*1000+0.1 -> 1293000.1 | N5: =IF(M5=MAX(M:M),1,M5) -> 1293000.1 | O5: =IF(N5=MAX(N:N),2,N5) -> 1293000.1 | P5: =IF(O5=MAX(O:O),3,O5) -> 3 | Q5: =IF(P5=MAX(P:P),4,P5) -> 3 | S5: 1 | T5: =INDIRECT(ADDRESS(MATCH(S5,Q2:Q5,0)+1,5)) -> Portugal | U5: =INDIRECT(ADDRESS(MATCH(S5,$Q$2:$Q$5,0)+1,11)) -> 3 | V5: =INDIRECT(ADDRESS(MATCH(S5,Q$2:Q$5,0)+1,8)) -> 2 | W5: =INDIRECT(ADDRESS(MATCH(S5,Q$2:Q$5,0)+1,9)) -> 0 | X5: =INDIRECT(ADDRESS(MATCH(S5,Q$2:Q$5,0)+1,10)) -> 1 | Y5: =INDIRECT(ADDRESS(MATCH(S5,Q$2:Q$5,0)+1,6)) -> 8 | Z5: =INDIRECT(ADDRESS(MATCH(S5,Q$2:Q$5,0)+1,7)) -> 4 | AA5: =Y5-Z5 -> 4 | AB5: =INDIRECT(ADDRESS(MATCH(S5,Q$2:Q$5,0)+1,12)) -> 6
A6: 2016-06-18 | B6: =INDIRECT(ADDRESS(1,D1,,,"Groupes")) -> Portugal | C6: 4 | S6: 2 | T6: =INDIRECT(ADDRESS(MATCH(S6,Q2:Q5,0)+1,5)) -> Islande | U6: =INDIRECT(ADDRESS(MATCH(S6,$Q$2:$Q$5,0)+1,11)) -> 3 | V6: =INDIRECT(ADDRESS(MATCH(S6,Q$2:Q$5,0)+1,8)) -> 2 | W6: =INDIRECT(ADDRESS(MATCH(S6,Q$2:Q$5,0)+1,9)) -> 0 | X6: =INDIRECT(ADDRESS(MATCH(S6,Q$2:Q$5,0)+1,10)) -> 1 | Y6: =INDIRECT(ADDRESS(MATCH(S6,Q$2:Q$5,0)+1,6)) -> 5 | Z6: =INDIRECT(ADDRESS(MATCH(S6,Q$2:Q$5,0)+1,7)) -> 5 | AA6: =Y6-Z6 -> 0 | AB6: =INDIRECT(ADDRESS(MATCH(S6,Q$2:Q$5,0)+1,12)) -> 6
B7: =INDIRECT(ADDRESS(3,D1,,,"Groupes")) -> Autriche | C7: 1 | S7: 3 | T7: =INDIRECT(ADDRESS(MATCH(S7,Q2:Q5,0)+1,5)) -> Hongrie | U7: =INDIRECT(ADDRESS(MATCH(S7,$Q$2:$Q$5,0)+1,11)) -> 3 | V7: =INDIRECT(ADDRESS(MATCH(S7,Q$2:Q$5,0)+1,8)) -> 1 | W7: =INDIRECT(ADDRESS(MATCH(S7,Q$2:Q$5,0)+1,9)) -> 0 | X7: =INDIRECT(ADDRESS(MATCH(S7,Q$2:Q$5,0)+1,10)) -> 2 | Y7: =INDIRECT(ADDRESS(MATCH(S7,Q$2:Q$5,0)+1,6)) -> 3 | Z7: =INDIRECT(ADDRESS(MATCH(S7,Q$2:Q$5,0)+1,7)) -> 4 | AA7: =Y7-Z7 -> -1 | AB7: =INDIRECT(ADDRESS(MATCH(S7,Q$2:Q$5,0)+1,12)) -> 3
A8: 2016-06-18 | B8: =INDIRECT(ADDRESS(2,D1,,,"Groupes")) -> Islande | C8: 2 | S8: 4 | T8: =INDIRECT(ADDRESS(MATCH(S8,Q2:Q5,0)+1,5)) -> Autriche | U8: =INDIRECT(ADDRESS(MATCH(S8,$Q$2:$Q$5,0)+1,11)) -> 3 | V8: =INDIRECT(ADDRESS(MATCH(S8,Q$2:Q$5,0)+1,8)) -> 1 | W8: =INDIRECT(ADDRESS(MATCH(S8,Q$2:Q$5,0)+1,9)) -> 0 | X8: =INDIRECT(ADDRESS(MATCH(S8,Q$2:Q$5,0)+1,10)) -> 2 | Y8: =INDIRECT(ADDRESS(MATCH(S8,Q$2:Q$5,0)+1,6)) -> 3 | Z8: =INDIRECT(ADDRESS(MATCH(S8,Q$2:Q$5,0)+1,7)) -> 6 | AA8: =Y8-Z8 -> -3 | AB8: =INDIRECT(ADDRESS(MATCH(S8,Q$2:Q$5,0)+1,12)) -> 3
B9: =INDIRECT(ADDRESS(4,D1,,,"Groupes")) -> Hongrie | C9: 1
A10: 2016-06-22 | B10: =INDIRECT(ADDRESS(1,D1,,,"Groupes")) -> Portugal | C10: 1 | S10: Groupe F
B11: =INDIRECT(ADDRESS(4,D1,,,"Groupes")) -> Hongrie | C11: 2
A12: 2016-06-22 | B12: =INDIRECT(ADDRESS(2,D1,,,"Groupes")) -> Islande | C12: 2
B13: =INDIRECT(ADDRESS(3,D1,,,"Groupes")) -> Autriche | C13: 1

Sheet Classement des 3e
D1: Pts | E1: Diff | F1: BP | R1: Pts | S1: Diff | T1: BP
A2: A | B2: 1 | C2: ='Groupe A'!T$7 -> Albanie | D2: ='Groupe A'!AB$7 -> 4 | E2: ='Groupe A'!AA$7 -> 0 | F2: ='Groupe A'!Y$7 -> 3 | G2: =D2*10000+E2*1000+F2*10+7.1 -> 40037.1 | H2: =IF(G2=MAX(G:G),1,G2) -> 40037.1 | I2: =IF(H2=MAX(H:H),2,H2) -> 2 | J2: =IF(I2=MAX(I:I),3,I2) -> 2 | K2: =IF(J2=MAX(J:J),4,J2) -> 2 | L2: =IF(K2=MAX(K:K),5,K2) -> 2 | M2: =IF(L2=MAX(L:L),6,L2) -> 2 | P2: 1 | Q2: =INDIRECT(ADDRESS(MATCH(P2,$M$2:$M$7,0)+1,3)) -> Pays de Galles | R2: =INDIRECT(ADDRESS(MATCH(P2,$M$2:$M$7,0)+1,4)) -> 4 | S2: =INDIRECT(ADDRESS(MATCH(P2,$M$2:$M$7,0)+1,5)) -> 1 | T2: =INDIRECT(ADDRESS(MATCH(P2,$M$2:$M$7,0)+1,6)) -> 5
A3: B | B3: 2 | C3: ='Groupe B'!T$7 -> Pays de Galles | D3: ='Groupe B'!AB$7 -> 4 | E3: ='Groupe B'!AA$7 -> 1 | F3: ='Groupe B'!Y$7 -> 5 | G3: =D3*10000+E3*1000+F3*10+7.2 -> 41057.2 | H3: 1 | I3: 1 | J3: 1 | K3: 1 | L3: 1 | M3: 1 | P3: 2 | Q3: Albanie | R3: 4 | S3: 0 | T3: 3
A4: C | B4: 4 | C4: ='Groupe C'!T$7 -> Irlande du Nord | D4: ='Groupe C'!AB$7 -> 2 | E4: ='Groupe C'!AA$7 -> -2 | F4: ='Groupe C'!Y$7 -> 2 | G4: =D4*10000+E4*1000+F4*10+7.3 -> 18027.3 | H4: 18027.3 | I4: 18027.3 | J4: 18027.3 | K4: 18027.3 | L4: 5 | M4: 5 | P4: 3 | Q4: Turquie | R4: 4 | S4: -1 | T4: 3
A5: D | B5: 8 | C5: ='Groupe D'!T$7 -> Turquie | D5: ='Groupe D'!AB$7 -> 4 | E5: ='Groupe D'!AA$7 -> -1 | F5: ='Groupe D'!Y$7 -> 3 | G5: =D5*10000+E5*1000+F5*10+7.4 -> 39037.4 | H5: 39037.4 | I5: 39037.4 | J5: 3 | K5: 3 | L5: 3 | M5: 3 | P5: 4 | Q5: Hongrie | R5: 3 | S5: -1 | T5: 3
A6: E | B6: 16 | C6: ='Groupe E'!T$7 -> Irlande | D6: ='Groupe E'!AB$7 -> 1 | E6: ='Groupe E'!AA$7 -> -3 | F6: ='Groupe E'!Y$7 -> 2 | G6: =D6*10000+E6*1000+F6*10+7.5 -> 7027.5 | H6: 7027.5 | I6: 7027.5 | J6: 7027.5 | K6: 7027.5 | L6: 7027.5 | M6: 6 | P6: 5 | Q6: Irlande du Nord | R6: 2 | S6: -2 | T6: 2
A7: F | B7: 32 | C7: ='Groupe F'!T$7 -> Hongrie | D7: ='Groupe F'!AB$7 -> 3 | E7: ='Groupe F'!AA$7 -> -1 | F7: ='Groupe F'!Y$7 -> 3 | G7: =D7*10000+E7*1000+F7*10+7.6 -> 29037.6 | H7: 29037.6 | I7: 29037.6 | J7: 29037.6 | K7: 4 | L7: 4 | M7: 4 | P7: 6 | Q7: Irlande | R7: 1 | S7: -3 | T7: 2
C12: =IF(M2<5,B2,0) -> 1 | O12: =INDIRECT(ADDRESS(MATCH(C18,Feuil2!A19:A33,0)+18,2,,,"Feuil2")) -> Turquie
C13: 2 | O13: =INDIRECT(ADDRESS(MATCH(C18,Feuil2!A19:A33,0)+18,3,,,"Feuil2")) -> Albanie
C14: 0 | O14: =INDIRECT(ADDRESS(MATCH(C18,Feuil2!A19:A33,0)+18,4,,,"Feuil2")) -> Pays de Galles
C15: 8 | O15: =INDIRECT(ADDRESS(MATCH(C18,Feuil2!A19:A33,0)+18,5,,,"Feuil2")) -> Hongrie
C16: 0
C17: 32
C18: =SUM(C12:C17) -> 43

Sheet Tableau final
N2: Tableau Final
B4: 2016-06-25 | C4: =IF(SUM('Groupe A'!U5:U8)=12,'Groupe A'!T6,"") -> Suisse | D4: 2 | AF4: 2016-06-26 | AG4: =IF(SUM('Groupe C'!U5:U8)=12,'Groupe C'!T5,"") -> Allemagne | AH4: 1
C5: =IF(SUM('Groupe C'!U5:U8)=12,'Groupe C'!T6,"") -> Pologne | D5: 1 | AG5: =IF(SUM('Groupe D'!U5:U8)=12,'Classement des 3e'!O14,"") -> Pays de Galles | AH5: 2
G8: 2016-06-30 | H8: =IF(D4>D5,C4,IF(D5>D4,C5,IF(E4>E5,C4,IF(E4<>E5,C5,"")))) -> Suisse | I8: 1 | AA8: 2016-07-02 | AB8: =IF(AH4>AH5,AG4,IF(AH5>AH4,AG5,IF(AI4>AI5,AG4,IF(AI4<>AI5,AG5,"")))) -> Pays de Galles | AC8: 1
H9: =IF(D12>D13,C12,IF(D13>D12,C13,IF(E12>E13,C12,IF(E12<>E13,C13,"")))) -> Espagne | I9: 3 | AB9: =IF(AH12>AH13,AG12,IF(AH13>AH12,AG13,IF(AI12>AI13,AG12,IF(AI12<>AI13,AG13,"")))) -> Belgique | AC9: 3
B12: 2016-06-25 | C12: =IF(SUM('Groupe D'!U5:U8)=12,'Groupe D'!T5,"") -> Espagne | D12: 3 | AF12: 2016-06-27 | AG12: =IF(SUM('Groupe E'!U5:U8)=12,'Groupe E'!T5,"") -> Belgique | AH12: 3
C13: =IF(SUM('Groupe D'!U5:U8)=12,'Classement des 3e'!O15,"") -> Hongrie | D13: 0 | AG13: =IF(SUM('Groupe D'!U5:U8)=12,'Groupe D'!T6,"") -> République Tchèque | AH13: 2
L16: 2016-07-06 | M16: =IF(I8>I9,H8,IF(I9>I8,H9,IF(J8>J9,H8,IF(J8<>J9,H9,"")))) -> Espagne | N16: 2 | Q16: FINALE | V16: 2016-07-07 | W16: =IF(AC8>AC9,AB8,IF(AC9>AC8,AB9,IF(AD8>AD9,AB8,IF(AD8<>AD9,AB9,"")))) -> Belgique | X16: 1
M17: =IF(I24>I25,H24,IF(I25>I24,H25,IF(J24>J25,H24,IF(J24<>J25,H25,"")))) -> Russie | N17: 1 | Q17: 2016-07-10 | R17: =IF(N16>N17,M16,IF(N17>N16,M17,IF(O16>O17,M16,IF(O16<>O17,M17,"")))) -> Espagne | S17: 1 | W17: =IF(AC24>AC25,AB24,IF(AC25>AC24,AB25,IF(AD24>AD25,AB24,IF(AD24<>AD25,AB25,"")))) -> France | X17: 3
R18: =IF(X16>X17,W16,IF(X17>X16,W17,IF(Y16>Y17,W16,IF(Y16<>Y17,W17,"")))) -> France | S18: 2
B20: 2016-06-25 | C20: =IF(SUM('Groupe B'!U5:U8)=12,'Groupe B'!T5,"") -> Russie | D20: 2 | AF20: 2016-07-26 | AG20: =IF(SUM('Groupe A'!U5:U8)=12,'Groupe A'!T5,"") -> France | AH20: 3
C21: =IF(SUM('Groupe D'!U5:U8)=12,'Classement des 3e'!O13,"") -> Albanie | D21: 1 | AG21: =IF(SUM('Groupe D'!U5:U8)=12,'Classement des 3e'!O12,"") -> Turquie | AH21: 1
G24: 2016-07-01 | H24: =IF(D20>D21,C20,IF(D21>D20,C21,IF(E20>E21,C20,IF(E20<>E21,C21,"")))) -> Russie | I24: 2 | AA24: 2016-07-03 | AB24: =IF(AH20>AH21,AG20,IF(AH21>AH20,AG21,IF(AI20>AI21,AG20,IF(AI20<>AI21,AG21,"")))) -> France | AC24: 2
H25: =IF(D28>D29,C28,IF(D29>D28,C29,IF(E28>E29,C28,IF(E28<>E29,C29,"")))) -> Suède | I25: 0 | AB25: =IF(AH28>AH29,AG28,IF(AH29>AH28,AG29,IF(AI28>AI29,AG28,IF(AI28<>AI29,AG29,"")))) -> Islande | AC25: 1
B28: 2016-06-26 | C28: =IF(SUM('Groupe F'!U5:U8)=12,'Groupe F'!T5,"") -> Portugal | D28: 2 | R28: Meilleur Joueur | AF28: 2016-07-27 | AG28: =IF(SUM('Groupe B'!U5:U8)=12,'Groupe B'!T6,"") -> Angleterre | AH28: 1
C29: =IF(SUM('Groupe E'!U5:U8)=12,'Groupe E'!T6,"") -> Suède | D29: 3 | R29: payet | AG29: =IF(SUM('Groupe F'!U5:U8)=12,'Groupe F'!T6,"") -> Islande | AH29: 2
M31: Buts marqués | N31: =SUM('Groupe A'!C2:C13,'Groupe B'!C2:C13,'Groupe C'!C2:C13,'Groupe D'!C2:C13,'Groupe E'!C2:C13,'Groupe F'!C2:C13,'Tableau final'!D4:D5,'Tableau final'!D12:D13,'Tableau final'!D20:D21,'Tableau final'!D28:D29,'Tableau final'!I8:I9,'Tableau final'!I24:I25,'Tableau final'!N16:N17,S17:S18,'Tableau final'!X16:X17,'Tableau final'!AC8:AC9,'Tableau final'!AC24:AC25,'Tableau final'!AH28:AH29,'Tableau final'!AH20:AH21,'Tableau final'!AH12:AH13,'Tableau final'!AH4:AH5) -> 152 | R31: Meilleur Buteur
R32: giroud

Sheet Règles de calcul
A1: Calcul des points
A3: 36 matches de poule
A4: 20 points par bons scores
A5: 15 points par bon pronostic mais mauvais score
A6: BONUS de 50 pts si plus de 50% de bons scores
A7: BONUS de 40 pts supplémentaires si plus de 50% de bons pronostics
A8: Total = 800pts
A10: 16 équipes qualifiées en 1/8 de finale
A11: 15pts par équipe pronostiquée présente
A12: BONUS de 20 points si plus de 8 équipes correctes
A13: BONUS de 20 points supplémentaires si plus de 12 équipes correctes
A14: Total = 280pts
A16: 8 équipes qualifiées en 1/4 de finale
A17: 25pts par équipe pronostiquée présente
A18: BONUS de 50 points si plus de 4 équipes correctes
A19: BONUS de 50 points supplémentaires si plus de 6 équipes correctes
A20: Total = 300pts
A22: 4 équipes qualifiées en 1/2 finale
A23: 60pts par équipe pronostiquée présente
A24: BONUS de 80 points si au moins 3 équipes correctes sur 4
A25: Total = 320pts
A27: 2 équipes qualifiées en finale
A28: 120pts par équipe pronostiquée présente
A29: BONUS de 100 points si 2 équipes correctes sur 2
A30: Total = 340pts
A32: Vainqueur
A33: 400pts pour le bon pronostic du Vainqueur de la Coupe du Monde
A34: Total = 400pts
A36: Joueurs
A37: 100pts pour le bon pronostic du Meilleur Joueur nommé par l'UEFA
A38: 100pts pour le bon pronostic du Meilleur Buteur nommé par l'UEFA
A39: Total = 200pts
A41: Buts marqués (Malus possible)
A42: Points = 210 - 5 * |Buts marqués - Pronostics|
A43: Total max = 210pts
A45: Total des points
A46: 800 + 280 + 300 + 320 + 340 + 400 + 200 + 210
A47: 2850pts possibles

Sheet Report (hidden)
F1: 1/8 de finalistes | H1: 1/4 de finalistes | J1: 1/2 finalistes | L1: Finalistes | N1: Vainqueur
A2: France - Roumanie | B2: ='Groupe A'!C2 -> 3 | C2: ='Groupe A'!C3 -> 1 | D2: =CONCATENATE(B2,"-",C2) -> 3-1 | F2: ='Tableau final'!C4 -> Suisse | H2: ='Tableau final'!H8 -> Suisse | J2: ='Tableau final'!M16 -> Espagne | L2: ='Tableau final'!R17 -> Espagne | N2: =IF('Tableau final'!S17>'Tableau final'!S18,'Tableau final'!R17,IF('Tableau final'!S18>'Tableau final'!S17,'Tableau final'!R18,IF('Tableau final'!T17>'Tableau final'!T18,'Tableau final'!R17,IF('Tableau final'!T17<>'Tableau final'!T18,'Tableau final'!R18,"")))) -> France
A3: Albanie - Suisse | B3: ='Groupe A'!C4 -> 1 | C3: ='Groupe A'!C5 -> 1 | D3: =CONCATENATE(B3,"-",C3) -> 1-1 | F3: ='Tableau final'!C5 -> Pologne | H3: ='Tableau final'!H9 -> Espagne | J3: ='Tableau final'!M17 -> Russie | L3: ='Tableau final'!R18 -> France
A4: Pays de Galles - Slovaquie | B4: ='Groupe B'!C4 -> 2 | C4: ='Groupe B'!C5 -> 0 | D4: 2-0 | F4: ='Tableau final'!C12 -> Espagne | H4: ='Tableau final'!H24 -> Russie | J4: ='Tableau final'!W16 -> Belgique
A5: Angleterre - Russie | B5: ='Groupe B'!C2 -> 1 | C5: ='Groupe B'!C3 -> 1 | D5: 1-1 | F5: ='Tableau final'!C13 -> Hongrie | H5: ='Tableau final'!H25 -> Suède | J5: ='Tableau final'!W17 -> France
A6: Turquie - Croatie | B6: ='Groupe D'!C4 -> 2 | C6: ='Groupe D'!C5 -> 1 | D6: 2-1 | F6: ='Tableau final'!C20 -> Russie | H6: ='Tableau final'!AB8 -> Pays de Galles
A7: Pologne - Irlande du Nord | B7: ='Groupe C'!C4 -> 1 | C7: ='Groupe C'!C5 -> 1 | D7: 1-1 | F7: ='Tableau final'!C21 -> Albanie | H7: ='Tableau final'!AB9 -> Belgique
A8: Allemagne - Ukraine | B8: ='Groupe C'!C2 -> 2 | C8: ='Groupe C'!C3 -> 0 | D8: 2-0 | F8: ='Tableau final'!C28 -> Portugal | H8: ='Tableau final'!AB24 -> France
A9: Espagne - Rép. Tchèque | B9: ='Groupe D'!C2 -> 1 | C9: ='Groupe D'!C3 -> 1 | D9: 1-1 | F9: ='Tableau final'!C29 -> Suède | H9: ='Tableau final'!AB25 -> Islande
A10: Irlande - Suède | B10: ='Groupe E'!C4 -> 1 | C10: ='Groupe E'!C5 -> 2 | D10: 1-2 | F10: ='Tableau final'!AG4 -> Allemagne
A11: Belgique - Italie | B11: ='Groupe E'!C2 -> 3 | C11: ='Groupe E'!C3 -> 0 | D11: 3-0 | F11: ='Tableau final'!AG5 -> Pays de Galles
A12: Autriche - Hongrie | B12: ='Groupe F'!C4 -> 1 | C12: ='Groupe F'!C5 -> 0 | D12: 1-0 | F12: ='Tableau final'!AG12 -> Belgique
A13: Portugal - Islande | B13: ='Groupe F'!C2 -> 3 | C13: ='Groupe F'!C3 -> 1 | D13: 3-1 | F13: ='Tableau final'!AG13 -> République Tchèque
A14: Russie - Slovaquie | B14: ='Groupe B'!C8 -> 2 | C14: ='Groupe B'!C9 -> 0 | D14: 2-0 | F14: ='Tableau final'!AG20 -> France
A15: Roumanie - Suisse | B15: ='Groupe A'!C8 -> 0 | C15: ='Groupe A'!C9 -> 2 | D15: 0-2 | F15: ='Tableau final'!AG21 -> Turquie
A16: France - Albanie | B16: ='Groupe A'!C6 -> 2 | C16: ='Groupe A'!C7 -> 1 | D16: 2-1 | F16: ='Tableau final'!AG28 -> Angleterre
A17: Angleterre - Pays de Galles | B17: ='Groupe B'!C6 -> 2 | C17: ='Groupe B'!C7 -> 2 | D17: 2-2 | F17: ='Tableau final'!AG29 -> Islande
A18: Ukraine - Irlande du Nord | B18: ='Groupe C'!C8 -> 0 | C18: ='Groupe C'!C9 -> 0 | D18: 0-0
A19: Allemagne - Pologne | B19: ='Groupe C'!C6 -> 3 | C19: ='Groupe C'!C7 -> 1 | D19: 3-1
A20: Italie - Suède | B20: ='Groupe E'!C8 -> 1 | C20: ='Groupe E'!C9 -> 3 | D20: 1-3
A21: Rép. Tchèque - Croatie | B21: ='Groupe D'!C8 -> 2 | C21: ='Groupe D'!C9 -> 1 | D21: 2-1
A22: Espagne - Turquie | B22: ='Groupe D'!C6 -> 2 | C22: ='Groupe D'!C7 -> 0 | D22: 2-0
A23: Belgique - Irlande | B23: ='Groupe E'!C6 -> 2 | C23: ='Groupe E'!C7 -> 0 | D23: 2-0
A24: Islande - Hongrie | B24: ='Groupe F'!C8 -> 2 | C24: ='Groupe F'!C9 -> 1 | D24: 2-1
A25: Portugal - Autriche | B25: ='Groupe F'!C6 -> 4 | C25: ='Groupe F'!C7 -> 1 | D25: 4-1
A26: France - Suisse | B26: ='Groupe A'!C10 -> 3 | C26: ='Groupe A'!C11 -> 1 | D26: 3-1
A27: Roumanie - Albanie | B27: ='Groupe A'!C12 -> 0 | C27: ='Groupe A'!C13 -> 1 | D27: 0-1
A28: Angleterre - Slovaquie | B28: ='Groupe B'!C10 -> 3 | C28: ='Groupe B'!C11 -> 1 | D28: 3-1
A29: Russie - Pays de Galles | B29: ='Groupe B'!C12 -> 2 | C29: ='Groupe B'!C13 -> 1 | D29: 2-1
A30: Allemagne - Irlande du Nord | B30: ='Groupe C'!C10 -> 3 | C30: ='Groupe C'!C11 -> 1 | D30: 3-1
A31: Ukraine - Pologne | B31: ='Groupe C'!C12 -> 0 | C31: ='Groupe C'!C13 -> 2 | D31: 0-2
A32: Espagne - Croatie | B32: ='Groupe D'!C10 -> 2 | C32: ='Groupe D'!C11 -> 2 | D32: 2-2
A33: Rép. Tchèque - Turquie | B33: ='Groupe D'!C12 -> 1 | C33: ='Groupe D'!C13 -> 1 | D33: 1-1
A34: Portugal - Hongrie | B34: ='Groupe F'!C10 -> 1 | C34: ='Groupe F'!C11 -> 2 | D34: 1-2
A35: Islande - Autriche | B35: ='Groupe F'!C12 -> 2 | C35: ='Groupe F'!C13 -> 1 | D35: 2-1
A36: Belgique - Suède | B36: ='Groupe E'!C10 -> 2 | C36: ='Groupe E'!C11 -> 2 | D36: 2-2
A37: Italie - Irlande | B37: ='Groupe E'!C12 -> 1 | C37: ='Groupe E'!C13 -> 1 | D37: 1-1

Sheet Feuil2 (hidden)
B1: Adversaires de | C1: Adversaires de | D1: Adversaires de | E1: Adversaires de
B2: 1A | C2: 1B | D2: 1C | E2: 1D
A3: A B C D | B3: 4 | C3: 5 | D3: 2 | E3: 3 | F3: 15
A4: A B C E | B4: 4 | C4: 2 | D4: 3 | E4: 6 | F4: 23
A5: A B C F | B5: 4 | C5: 2 | D5: 3 | E5: 7 | F5: 39
A6: A B D E | B6: 5 | C6: 2 | D6: 3 | E6: 6 | F6: 27
A7: A B D F | B7: 5 | C7: 2 | D7: 3 | E7: 7 | F7: 43
A8: A B E F | B8: 6 | C8: 2 | D8: 3 | E8: 7 | F8: 51
A9: A C D E | B9: 4 | C9: 5 | D9: 2 | E9: 6 | F9: 29
A10: A C D F | B10: 4 | C10: 5 | D10: 2 | E10: 7 | F10: 45
A11: A C E F | B11: 4 | C11: 2 | D11: 7 | E11: 6 | F11: 53
A12: A D E F | B12: 5 | C12: 2 | D12: 7 | E12: 6 | F12: 57
A13: B C D E | B13: 4 | C13: 5 | D13: 3 | E13: 6 | F13: 30
A14: B C D F | B14: 4 | C14: 5 | D14: 3 | E14: 7 | F14: 46
A15: B C E F | B15: 6 | C15: 4 | D15: 3 | E15: 7 | F15: 54
A16: B D E F | B16: 6 | C16: 5 | D16: 3 | E16: 7 | F16: 58
A17: C D E F | B17: 4 | C17: 5 | D17: 7 | E17: 6 | F17: 60
A19: 15 | B19: =INDIRECT(ADDRESS(B3,3,,,"Classement des 3e")) -> Irlande du Nord | C19: Turquie | D19: Albanie | E19: Pays de Galles | G19: 15 | H19: Pologne | I19: Croatie | J19: Roumanie | K19: Slovaquie
A20: 23 | B20: Irlande du Nord | C20: Albanie | D20: Pays de Galles | E20: Irlande | G20: 23 | H20: Pologne | I20: Roumanie | J20: Slovaquie | K20: Belgique
A21: 39 | B21: Irlande du Nord | C21: Albanie | D21: Pays de Galles | E21: Hongrie | G21: 27 | H21: Croatie | I21: Roumanie | J21: Slovaquie | K21: Belgique
A22: 27 | B22: Turquie | C22: Albanie | D22: Pays de Galles | E22: Irlande | G22: 29 | H22: Pologne | I22: Croatie | J22: Roumanie | K22: Belgique
A23: 43 | B23: Turquie | C23: Albanie | D23: Pays de Galles | E23: Hongrie | G23: 30 | H23: Pologne | I23: Croatie | J23: Slovaquie | K23: Belgique
A24: 51 | B24: Irlande | C24: Albanie | D24: Pays de Galles | E24: Hongrie | G24: 39 | H24: Pologne | I24: Roumanie | J24: Slovaquie | K24: Islande
A25: 29 | B25: Irlande du Nord | C25: Turquie | D25: Albanie | E25: Irlande | G25: 43 | H25: Croatie | I25: Roumanie | J25: Slovaquie | K25: Islande
A26: 45 | B26: Irlande du Nord | C26: Turquie | D26: Albanie | E26: Hongrie | G26: 45 | H26: Pologne | I26: Croatie | J26: Roumanie | K26: Islande
A27: 53 | B27: Irlande du Nord | C27: Albanie | D27: Hongrie | E27: Irlande | G27: 46 | H27: Pologne | I27: Croatie | J27: Slovaquie | K27: Islande
A28: 57 | B28: Turquie | C28: Albanie | D28: Hongrie | E28: Irlande | G28: 51 | H28: Belgique | I28: Roumanie | J28: Slovaquie | K28: Islande
A29: 30 | B29: Irlande du Nord | C29: Turquie | D29: Pays de Galles | E29: Irlande | G29: 53 | H29: Pologne | I29: Roumanie | J29: Islande | K29: Belgique
A30: 46 | B30: Irlande du Nord | C30: Turquie | D30: Pays de Galles | E30: Hongrie | G30: 54 | H30: Belgique | I30: Pologne | J30: Slovaquie | K30: Islande
A31: 54 | B31: Irlande | C31: Irlande du Nord | D31: Pays de Galles | E31: Hongrie | G31: 57 | H31: Croatie | I31: Roumanie | J31: Islande | K31: Belgique
A32: 58 | B32: Irlande | C32: Turquie | D32: Pays de Galles | E32: Hongrie | G32: 58 | H32: Belgique | I32: Croatie | J32: Slovaquie | K32: Islande
A33: 60 | B33: Irlande du Nord | C33: Turquie | D33: Hongrie | E33: Irlande | G33: 60 | H33: Pologne | I33: Croatie | J33: Islande | K33: Belgique
